bitfinex/quotes_ETHUSD_20250814
["timestamp","ask_amount","ask_price","bid_price","bid_amount"]
[1755161120743,53.08720808,4725.4,4725.3,36.0037283]
[1755161121068,0.002,4725.9,4725.7,2.11608862]
[1755161121356,0.002,4725.9,4725.7,5.96718862]
[1755161121851,0.002,4725.9,4725.7,6.05181262]
[1755161122454,0.002,4725.9,4725.7,5.30631262]
[1755161122638,0.002,4725.9,4725.7,7.17906921]
[1755161124051,1.232,4725.8,4725.7,7.17906921]
[1755161125134,1.1845,4725.8,4725.7,7.17906921]
[1755161125334,2.4145,4725.8,4725.7,7.17906921]
[1755161125736,2.3184,4725.8,4725.7,7.17906921]
[1755161126045,2.2796,4725.8,4725.7,7.17906921]
[1755161126756,3.5088,4725.8,4725.7,7.17906921]
[1755161127153,3.5088,4725.8,4725.7,7.67286921]
[1755161128028,4.7388,4725.8,4725.7,7.67286921]
[1755161128227,4.7388,4725.8,4725.7,7.17906921]
[1755161128459,5.1778,4725.8,4725.7,7.17906921]
[1755161128643,5.6287,4725.8,4725.7,5.22168862]
[1755161129026,5.1778,4725.8,4725.7,5.22168862]
[1755161129441,6.4078,4725.8,4725.7,5.22168862]
[1755161130753,7.6378,4725.8,4725.7,5.22168862]
[1755161131771,7.6378,4725.8,4725.7,3.1056]
[1755161131928,8.0887,4725.8,4725.7,3.1056]
[1755161132245,10.12777,4725.8,4725.7,0.1064]
[1755161132634,10.12777,4725.8,4725.7,0.0008]
[1755161132835,10.12777,4725.8,4725.0,2.11639389]
[1755161132836,9.3207,4725.8,4725.4,0.1056]
[1755161133034,0.8899,4725.7,4725.4,0.1056]
[1755161133463,0.8899,4725.6,4725.4,0.1056]
[1755161133769,0.8899,4725.5,4725.1,0.1056]
[1755161133966,1.23,4725.7,4725.1,0.1056]
[1755161134174,0.8899,4725.4,4725.1,0.1056]
[1755161134469,0.8899,4725.3,4725.1,0.1056]
[1755161134670,0.8899,4725.2,4725.1,0.1056]
[1755161134872,0.8899,4725.2,4724.6,0.1056]
[1755161135032,0.8899,4725.1,4724.6,0.1056]
[1755161135232,1.3356,4725.3,4724.6,0.1056]
[1755161135233,0.8899,4725.0,4724.6,0.1056]
[1755161135472,0.439,4724.9,4724.4,0.00619209]
[1755161135683,0.4509,4724.8,4724.4,0.00619209]
[1755161135976,0.5446,4724.7,4724.4,0.00619209]
[1755161136260,0.439,4724.6,4724.4,0.00619209]
[1755161136461,0.439,4724.6,4724.4,0.52975531]
[1755161136762,1.23,4724.8,4724.5,3.0]
[1755161136960,1.23,4724.8,4724.4,3.63535531]
[1755161137162,0.439,4724.7,4724.4,0.63535531]
[1755161137333,1.23,4724.8,4724.4,0.11179209]
[1755161137532,0.439,4724.6,4724.4,0.11179209]
[1755161137732,0.439,4724.5,4724.4,0.11179209]
[1755161138944,1.23,4724.5,4724.4,2.22846299]
[1755161139541,1.23,4724.5,4724.4,5.72226299]
[1755161139766,1.23,4724.5,4724.4,7.80468024]
[1755161140252,2.46,4724.5,4724.4,7.80468024]
[1755161141760,3.69,4724.5,4724.4,7.80468024]
[1755161141964,3.69,4724.5,4724.4,7.31088024]
[1755161142144,3.69,4724.5,4724.4,3.09388209]
[1755161142145,4.129,4724.5,4724.4,3.09388209]
[1755161142332,4.5799,4724.5,4724.4,3.09388209]
[1755161142540,4.5412,4724.5,4724.4,5.21055299]
[1755161142947,5.7712,4724.5,4724.4,5.21055299]
[1755161143342,4.8813,4724.5,4724.4,5.21055299]
[1755161143670,4.8813,4724.5,4724.4,5.943984]
[1755161144457,6.1113,4724.5,4724.4,5.943984]
[1755161144659,6.5503,4724.5,4724.4,3.8273131]
[1755161144864,7.0012,4724.5,4724.4,3.0008]
[1755161145841,8.2312,4724.5,4724.4,3.0008]
[1755161146041,7.7803,4724.5,4724.4,5.1174709]
[1755161146457,7.3413,4724.5,4724.4,5.1174709]
[1755161147156,8.5713,4724.5,4724.4,5.1174709]
[1755161147552,8.5713,4724.5,4724.4,3.0008]
[1755161147759,9.0103,4724.5,4724.4,3.0008]
[1755161148655,9.8013,4724.5,4724.4,5.1174709]
[1755161148971,9.8005,4724.5,4724.4,5.85215354]
[1755161153186,10.2697,4724.5,4724.4,5.85215354]
[1755161154589,10.2717,4724.5,4724.4,5.85215354]
[1755161155972,11.1651,4724.5,4724.4,3.0008]
[1755161156281,12.3951,4724.5,4724.4,3.0008]
[1755161156863,11.5017,4724.5,4724.4,3.0008]
[1755161157356,11.0325,4724.5,4724.4,5.1174709]
[1755161157556,12.7317,4724.5,4724.4,5.1174709]
[1755161157990,12.2625,4724.5,4724.4,5.1174709]
[1755161158193,12.2625,4724.5,4724.4,5.62991799]
[1755161158592,13.6251,4724.5,4724.4,5.62991799]
[1755161158975,13.9617,4724.5,4724.4,5.62991799]
[1755161159294,13.4925,4724.5,4724.4,5.62991799]
[1755161160479,14.7225,4724.5,4724.4,5.62991799]
[1755161161868,15.9525,4724.5,4724.4,6.57191799]
[1755161162071,15.9525,4724.5,4724.4,6.82361799]
[1755161162392,1.23,4724.8,4724.6,2.11658129]
[1755161162591,0.002,4725.0,4724.9,30.9349333]
[1755161162794,0.002,4725.0,4724.9,34.03027825]
[1755161163098,0.002,4725.0,4724.9,36.14672515]
[1755161163392,0.002,4725.0,4724.9,34.2450802]
[1755161164290,0.002,4725.0,4724.9,33.9933802]
[1755161164495,1.232,4725.0,4724.9,36.09450745]
[1755161165100,1.232,4725.0,4724.9,36.34620745]
[1755161165689,1.2198,4725.0,4724.9,36.34620745]
[1755161165892,1.2198,4725.0,4724.9,36.45180745]
[1755161166090,2.4498,4725.0,4724.9,36.20010745]
[1755161166401,2.4498,4725.0,4724.9,36.83489445]
[1755161167169,1.23,4725.3,4725.2,2.11631253]
[1755161167375,1.23,4725.3,4725.2,8.26503978]
[1755161167905,1.1648,4725.3,4725.2,7.32303978]
[1755161168404,1.1492,4725.3,4725.2,7.32303978]
[1755161168906,2.3792,4725.3,4725.2,7.32303978]
[1755161170407,3.6092,4725.3,4725.2,7.32303978]
[1755161171190,3.6084,4725.3,4725.2,7.32303978]
[1755161171687,4.8384,4725.3,4725.2,7.32303978]
[1755161172511,4.8384,4725.3,4725.2,8.26503978]
[1755161172680,4.8384,4725.3,4725.2,8.26583978]
[1755161173181,6.0684,4725.3,4725.2,7.32383978]
[1755161174612,7.2984,4725.3,4725.2,7.32383978]
[1755161174783,7.2141,4725.3,4725.2,7.32383978]
[1755161175405,7.1881,4725.3,4725.2,7.32383978]
[1755161175906,8.4181,4725.3,4725.2,7.32383978]
[1755161177707,9.6481,4725.3,4725.2,7.32383978]
[1755161178443,1.14219199,4725.8,4725.6,2.1161334]
[1755161178626,0.002,4725.9,4725.8,5.11604384]
[1755161179522,0.8954,4726.8,4725.8,5.11604384]
[1755161179523,0.002,4726.8,4726.7,2.11564093]
[1755161179737,1.3646,4726.8,4726.7,2.11564093]
[1755161180228,1.3646,4726.8,4725.8,1.98626695]
[1755161180229,1.50126,4726.8,4725.6,3.0]
[1755161180398,0.13866,4726.8,4726.7,2.11564093]
[1755161180597,1.232,4726.8,4726.7,2.11564093]
[1755161181016,2.5946,4726.8,4726.7,2.11564093]
[1755161181606,2.5946,4726.8,4726.5,2.11568631]
[1755161181817,0.002,4726.4,4726.2,2.11585699]
[1755161182325,1.3608,4726.3,4726.1,2.11590162]
[1755161182526,1.3608,4726.2,4725.2,0.0008]
[1755161182829,1.3608,4726.1,4725.2,0.0008]
[1755161183003,1.3608,4726.0,4725.2,0.0008]
[1755161183205,0.13628,4726.3,4725.2,0.0008]
[1755161183404,1.3608,4725.9,4725.2,0.0008]
[1755161183596,1.49688,4725.8,4725.3,2.11626775]
[1755161183801,1.49688,4725.8,4725.2,2.11710655]
[1755161183802,1.3608,4725.7,4725.2,2.11710655]
[1755161184023,1.3608,4725.6,4725.2,2.11710655]
[1755161184327,1.3608,4725.5,4725.3,2.11626578]
[1755161184630,1.3608,4725.4,4725.3,2.11626775]
[1755161184830,0.9327,4725.8,4725.3,2.11626775]
[1755161185043,0.9327,4725.7,4725.6,2.1161334]
[1755161185542,0.4281,4725.7,4725.6,2.1161334]
[1755161186019,1.3608,4726.1,4725.7,5.11608501]
[1755161186219,0.4281,4726.0,4725.9,2.11599906]
[1755161186418,1.23,4726.1,4726.0,2.11595429]
[1755161186621,1.23,4726.1,4726.0,5.11595429]
[1755161186815,1.23,4726.1,4726.0,5.83914963]
[1755161187413,2.5908,4726.1,4726.0,5.83914963]
[1755161187625,2.5908,4726.1,4726.0,2.11595429]
[1755161187819,3.8208,4726.1,4726.0,2.11595429]
[1755161188065,3.8208,4726.1,4725.4,3.0]
[1755161188356,1.3608,4726.0,4725.7,2.11608862]
[1755161188856,1.3608,4725.9,4725.2,0.0008]
[1755161189151,1.3608,4725.8,4725.3,2.11626275]
[1755161189444,1.23,4725.9,4724.4,3.0]
[1755161189445,1.3608,4725.7,4724.4,2.1166709]
[1755161189750,1.3608,4725.6,4725.1,2.11635732]
[1755161189950,1.3608,4725.5,4725.0,2.22199372]
[1755161190154,1.3608,4725.4,4725.1,2.11635732]
[1755161190357,0.1056,4725.7,4725.1,2.11635732]
[1755161190558,1.3608,4725.3,4725.1,2.11635732]
[1755161190746,1.3608,4725.2,4725.1,2.11635732]
[1755161191056,1.23,4725.4,4725.3,2.11626775]
[1755161191732,1.23,4725.4,4725.3,2.22186775]
[1755161192054,2.46,4725.4,4725.3,2.22186775]
[1755161192353,2.8881,4725.4,4725.3,2.22186775]
[1755161192525,3.8208,4725.4,4724.5,0.21206709]
[1755161192726,0.4281,4725.3,4725.0,0.1056]
[1755161192938,1.3608,4725.3,4725.1,2.11635312]
[1755161193237,0.9327,4725.2,4725.1,2.11634702]
[1755161193441,0.9319,4725.2,4725.1,2.11714702]
[1755161193647,1.36,4725.2,4725.1,2.11714702]
[1755161194278,1.36,4725.2,4725.1,0.0008]
[1755161194432,1.36,4725.2,4725.1,2.11715732]
[1755161194628,2.59,4725.2,4725.1,2.11715732]
[1755161196033,3.82,4725.2,4725.1,2.11715732]
[1755161196343,3.82,4725.2,4725.1,0.0008]
[1755161196767,3.82,4725.2,4724.7,2.11652895]
[1755161196933,2.46,4725.2,4724.7,2.11652895]
[1755161197273,1.3608,4725.1,4724.8,2.11648645]
[1755161197574,1.3608,4725.1,4724.9,2.1164467]
[1755161197778,1.3608,4725.0,4724.9,2.1164467]
[1755161197934,0.4281,4725.0,4724.9,2.1164467]
[1755161198765,1.6581,4725.0,4724.9,2.1164467]
[1755161199864,1.23,4725.0,4724.9,2.1164467]
[1755161200068,2.46,4725.0,4724.9,2.1164467]
[1755161200267,2.8881,4725.0,4724.8,2.11648541]
[1755161200470,2.46,4725.0,4724.9,2.1172469]
[1755161201352,3.69,4725.0,4724.9,2.1172469]
[1755161201746,4.1181,4725.0,4724.9,2.1172469]
[1755161202770,3.69,4725.0,4724.9,2.1172469]
[1755161202974,3.69,4725.0,4724.9,6.95382282]
[1755161202975,4.92,4725.0,4724.9,6.95382282]
[1755161203466,4.92,4725.0,4724.9,6.03782282]
[1755161203867,5.3481,4725.0,4724.9,5.2228469]
[1755161204067,6.2808,4725.0,4724.9,5.1172469]
[1755161204370,7.5108,4725.0,4724.9,5.1172469]
[1755161204572,1.23,4725.9,4725.8,2.11604384]
[1755161204745,1.1874,4725.9,4725.8,2.22164384]
[1755161204943,1.1874,4725.9,4725.8,8.23877109]
[1755161205257,1.1874,4725.9,4725.8,8.24037887]
[1755161205663,2.4174,4725.9,4725.8,8.24037887]
[1755161207274,3.6474,4725.9,4725.8,8.24037887]
[1755161208462,4.8774,4725.9,4725.8,8.24037887]
[1755161208680,4.8774,4725.9,4725.8,7.32437887]
[1755161209860,6.1074,4725.9,4725.8,7.32437887]
[1755161210693,6.0627,4725.9,4725.8,7.32517887]
[1755161211374,7.229,4725.9,4725.8,7.32517887]
[1755161211749,1.23,4726.1,4725.8,7.32517887]
[1755161211949,0.002,4726.4,4726.3,5.11581998]
[1755161212150,0.002,4726.4,4726.3,6.21801998]
[1755161212859,1.232,4726.4,4726.3,6.85262398]
[1755161213452,0.002,4727.0,4726.7,2.11564093]
[1755161213980,0.002,4727.0,4726.7,2.22124093]
[1755161214279,3.692,4726.8,4726.7,8.31896818]
[1755161214651,0.002,4727.7,4726.9,2.11555141]
[1755161214883,0.4694,4728.4,4727.5,5.11528291]
[1755161214884,0.4462,4728.4,4727.5,5.11528291]
[1755161215058,0.4462,4728.4,4728.2,2.11496975]
[1755161215264,0.9777,4728.4,4728.1,0.1056]
[1755161215456,0.9777,4728.4,4728.2,2.11496975]
[1755161215858,0.9777,4728.4,4728.3,2.11492502]
[1755161216258,0.9769,4728.4,4728.3,2.11492502]
[1755161216765,1.4463,4728.4,4728.3,2.11492502]
[1755161217078,2.6763,4728.4,4728.3,2.11492502]
[1755161218359,3.9063,4728.4,4728.3,2.11492502]
[1755161219661,3.69,4728.4,4728.3,5.53031707]
[1755161219861,3.69,4728.4,4728.3,5.63591707]
[1755161220066,3.69,4728.4,4728.3,5.84751707]
[1755161220365,3.69,4728.4,4728.3,5.63591707]
[1755161221091,4.922,4728.4,4728.3,5.63591707]
[1755161222577,6.152,4728.4,4728.3,5.63591707]
[1755161222892,6.152,4728.4,4727.7,30.05008905]
[1755161222893,7.5991,4728.4,4727.7,2.11518348]
[1755161223080,1.4471,4728.3,4727.7,2.11517822]
[1755161223284,1.4471,4728.3,4727.8,2.11514041]
[1755161223486,1.4471,4728.2,4726.1,28.9315333]
[1755161223810,2.20701,4728.1,4726.5,2.1157186]
[1755161224094,2.20701,4728.1,4725.9,2.17199302]
[1755161224095,1.4471,4728.0,4726.1,0.10646518]
[1755161224292,0.75991,4728.1,4726.9,2.11553429]
[1755161224492,1.4471,4727.9,4727.1,2.11545619]
[1755161224695,0.4694,4727.8,4727.1,2.11545619]
[1755161225111,0.4694,4727.8,4727.2,2.11541441]
[1755161225408,0.4694,4727.8,4726.8,2.11559007]
[1755161225807,0.4694,4727.8,4727.3,2.11533489]
[1755161226013,1.23,4727.9,4726.6,0.02115685]
[1755161226184,1.23,4727.9,4727.6,2.11520734]
[1755161226382,0.4694,4727.8,4726.9,3.0]
[1755161226690,0.4694,4727.8,4727.7,2.11519343]
[1755161227086,2.46,4727.9,4727.7,2.11519343]
[1755161227087,2.46,4727.9,4727.8,5.11514869]
[1755161228320,3.69,4727.9,4727.8,5.11514869]
[1755161228617,3.6892,4727.9,4727.8,5.11514869]
[1755161229513,4.9192,4727.9,4727.8,5.11514869]
[1755161230398,4.9192,4727.9,4727.8,5.11594869]
[1755161231202,6.1492,4727.9,4727.8,5.11594869]
[1755161231504,6.1492,4727.9,4727.8,5.8390629]
[1755161231711,6.1492,4727.9,4727.8,6.8356629]
[1755161232604,7.3792,4727.9,4727.8,5.8390629]
[1755161232918,7.2049,4727.9,4727.8,5.9446629]
[1755161233127,7.2049,4727.9,4727.8,6.9412629]
[1755161233930,8.4349,4727.9,4727.8,6.9412629]
[1755161234213,1.23,4728.3,4728.2,2.11496975]
[1755161234414,1.23,4728.3,4728.2,6.6651866]
[1755161235322,2.46,4728.3,4728.2,6.6651866]
[1755161236822,3.69,4728.3,4728.2,6.6651866]
[1755161237628,1.5547,4730.0,4728.3,3.0]
[1755161237826,1.5547,4730.0,4728.6,33.15532414]
[1755161237827,0.4714,4730.0,4728.6,33.15532414]
[1755161238004,0.4714,4730.0,4728.6,35.25645139]
[1755161238202,1.232,4728.7,4728.6,36.52795139]
[1755161238511,1.232,4728.7,4728.6,36.25305139]
[1755161238826,1e-08,4728.7,4728.6,36.52795139]
[1755161239206,0.45090001,4730.4,4728.8,2.1147014]
[1755161239526,0.45090001,4730.4,4730.3,2.11403082]
[1755161239717,1.23,4730.4,4730.3,2.21963082]
[1755161240755,1.23,4730.4,4728.4,0.084574]
[1755161240756,2.2077,4730.4,4728.2,1.44461685]
[1755161240902,0.9777,4730.3,4729.0,2.11460577]
[1755161241102,0.1056,4729.7,4729.1,2.11455113]
[1755161241340,1.5851,4729.6,4729.0,0.1056]
[1755161241628,0.4749,4729.5,4729.0,2.22017019]
[1755161241827,0.4749,4729.5,4729.1,2.11456669]
[1755161242032,1.1102,4729.4,4729.0,2.22020487]
[1755161242250,0.4749,4729.3,4729.0,2.2202095]
[1755161242406,0.4749,4729.3,4729.2,2.11452254]
[1755161242624,0.4749,4729.3,4729.0,2.22016726]
[1755161242827,0.4749,4729.2,4729.0,0.1056]
[1755161243045,1.23,4729.5,4729.4,2.11443312]
[1755161243239,1.23,4729.5,4729.4,2.22003312]
[1755161243667,2.46,4729.5,4729.4,2.22003312]
[1755161243955,2.46,4729.5,4729.4,5.9534886]
[1755161244138,2.46,4729.5,4729.4,7.0354886]
[1755161244342,2.46,4729.5,4729.4,7.4352886]
[1755161244929,2.46,4729.5,4729.4,7.0354886]
[1755161245138,3.69,4729.5,4729.4,5.9534886]
[1755161245755,3.69,4729.5,4729.4,5.22003312]
[1755161245921,3.69,4729.5,4729.4,2.22003312]
[1755161246757,4.92,4729.5,4729.4,2.22003312]
[1755161247851,6.15,4729.5,4729.4,2.22003312]
[1755161249335,7.38,4729.5,4729.4,2.22003312]
[1755161250642,10.1951,4729.5,4729.4,0.1056]
[1755161250958,11.21461,4729.5,4729.1,0.1056]
[1755161251158,1.5851,4729.4,4729.1,2.22016019]
[1755161251358,1.5851,4729.4,4729.1,3.1056]
[1755161251535,1.5851,4729.3,4729.1,2.22015874]
[1755161251736,1.5851,4729.2,4729.1,2.22015874]
[1755161252133,2.46,4730.4,4729.6,2.1143437]
[1755161252365,2.46,4730.4,4730.1,5.1141202]
[1755161252666,2.46,4730.4,4730.2,3.0]
[1755161252837,2.46,4730.4,4730.3,2.11403082]
[1755161253039,0.002,4730.5,4730.4,2.11398613]
[1755161253265,0.002,4730.5,4730.4,8.29711338]
[1755161253636,0.002,4730.5,4730.4,7.21511338]
[1755161254438,0.002,4730.5,4730.4,8.29711338]
[1755161255161,1.232,4730.5,4730.4,8.29711338]
[1755161256438,2.462,4730.5,4730.4,8.29711338]
[1755161257755,3.692,4730.5,4730.4,8.29711338]
[1755161259267,2.11249891,4733.8,4730.4,8.29711338]
[1755161259268,1e-08,4731.0,4730.9,2.1137627]
[1755161259437,1e-08,4731.0,4730.9,33.77146641]
[1755161259643,1e-08,4731.0,4730.9,34.85346641]
[1755161260064,1e-08,4731.0,4730.9,33.77146641]
[1755161260464,1.23000001,4731.0,4730.9,33.77226641]
[1755161261266,1.23000001,4731.0,4730.9,34.85426641]
[1755161261652,1.23000001,4731.0,4730.9,33.77226641]
[1755161261839,2.46000001,4731.0,4730.9,33.77226641]
[1755161262280,2.46000001,4731.0,4730.9,33.87786641]
[1755161262441,2.46000001,4731.0,4730.9,34.95986641]
[1755161263271,3.69000001,4731.0,4730.9,5.94293311]
[1755161263463,3.69000001,4731.0,4730.9,5.2201627]
[1755161263671,5.27510001,4731.0,4730.9,5.2201627]
[1755161264480,5.27510001,4731.0,4730.9,3.1064]
[1755161264777,6.50510001,4731.0,4730.9,0.0008]
[1755161265763,6.50510001,4731.0,4730.6,2.11388298]
[1755161265957,1.5851,4730.9,4730.7,2.1138449]
[1755161266264,1.5851,4730.9,4730.5,2.2195232]
[1755161266459,1.1102,4730.9,4730.6,2.11385363]
[1755161266672,1.1102,4730.9,4730.8,0.1056]
[1755161267071,1.5851,4730.9,4730.8,0.1056]
[1755161267567,2.8151,4730.9,4730.8,0.1056]
[1755161267754,3.71161,4730.9,4730.8,0.1056]
[1755161267952,3.71161,4730.9,4729.3,0.001]
[1755161268286,0.1056,4730.4,4729.7,0.1056]
[1755161268490,2.12651,4730.9,4729.3,0.001]
[1755161268491,1.5851,4730.3,4729.3,0.001]
[1755161268659,0.1056,4730.1,4729.5,0.1056]
[1755161268886,1.5851,4730.0,4729.3,0.1066]
[1755161269181,1.5851,4729.9,4729.3,0.1066]
[1755161269371,1.5851,4729.8,4729.3,0.1066]
[1755161269698,1.5851,4729.8,4729.6,0.1056]
[1755161269699,0.4749,4729.7,4729.6,0.1056]
[1755161270557,0.4749,4729.7,4729.6,0.1064]
[1755161270886,2.8151,4729.7,4729.6,0.1064]
[1755161271884,3.09661,4729.7,4729.6,0.1064]
[1755161272091,4.32661,4729.7,4729.6,0.1064]
[1755161272289,4.32661,4729.7,4728.8,0.001]
[1755161272586,1.6238,4729.6,4728.8,0.001]
[1755161272760,2.060331,4729.5,4728.8,0.001]
[1755161272966,1.6238,4729.4,4728.8,0.001]
[1755161273178,1.6238,4729.3,4728.8,0.001]
[1755161273380,1.6238,4729.2,4728.8,0.001]
[1755161273556,1.6238,4729.1,4728.8,0.001]
[1755161273756,1.78618,4729.0,4728.8,0.001]
[1755161274062,1.6238,4728.9,4728.8,0.001]
[1755161274952,2.8538,4728.9,4728.8,0.001]
[1755161276360,4.0838,4728.9,4728.8,0.001]
[1755161276787,6.19845668,4728.9,4728.8,0.001]
[1755161276967,4.93133672,4728.9,4728.8,0.001]
[1755161277164,7.0459934,4728.9,4728.8,0.001]
[1755161277592,8.2759934,4728.9,4728.8,0.001]
[1755161278590,6.16133672,4728.9,4728.8,0.001]
[1755161279086,7.39133672,4728.9,4728.8,0.001]
[1755161280394,5.3657,4728.9,4728.8,0.001]
[1755161280593,7.7738,4728.9,4728.8,0.001]
[1755161281893,9.0038,4728.9,4728.8,0.001]
[1755161282467,9.1094,4728.9,4728.8,0.001]
[1755161283484,10.3394,4728.9,4728.8,0.001]
[1755161283677,11.58479243,4728.9,4728.8,0.001]
[1755161284784,12.81479243,4728.9,4728.8,0.001]
[1755161285697,11.63669243,4728.9,4728.8,0.001]
[1755161286101,12.86669243,4728.9,4728.8,0.001]
[1755161286396,12.42099243,4728.9,4728.8,0.001]
[1755161286980,12.86669243,4728.9,4728.8,0.001]
[1755161287595,14.09669243,4728.9,4728.8,0.001]
[1755161287798,12.4056,4728.9,4728.8,0.001]
[1755161288286,12.3,4728.9,4728.8,3.2799014]
[1755161288619,12.3,4728.9,4728.8,0.001]
[1755161288904,13.53,4728.9,4728.8,0.001]
[1755161289109,13.9757,4728.9,4728.8,0.001]
[1755161289288,15.2594,4728.9,4728.8,0.001]
[1755161289811,14.0813,4728.9,4728.8,0.001]
[1755161290310,18.01534,4728.9,4728.8,0.001]
[1755161290514,18.01534,4728.9,4728.8,0.0018]
[1755161291512,19.24534,4728.9,4728.8,0.0018]
[1755161291905,16.5413,4728.9,4728.8,0.0018]
[1755161292513,17.7194,4728.9,4728.8,0.0018]
[1755161292919,21.06405668,4728.9,4728.8,0.0018]
[1755161294306,22.29405668,4728.9,4728.8,0.0018]
[1755161296021,23.52405668,4728.9,4728.8,0.0018]
[1755161296193,27.34695668,4728.9,4728.8,0.0018]
[1755161297490,28.57695668,4728.9,4728.8,0.0018]
[1755161298219,2.11505922,4728.0,4727.9,0.001]
[1755161298402,2.22065922,4728.0,4727.9,0.001]
[1755161298596,7.66735922,4728.0,4727.9,0.001]
[1755161298931,8.89735922,4728.0,4727.9,0.001]
[1755161300211,10.12735922,4728.0,4727.9,0.001]
[1755161301831,11.35735922,4728.0,4727.9,0.001]
[1755161303331,12.58735922,4728.0,4727.9,0.001]
[1755161304637,2.11519343,4727.7,4727.2,0.001]
[1755161304934,3.8209,4727.6,4727.2,0.001]
[1755161305104,0.1056,4727.4,4727.2,0.001]
[1755161305307,0.1056,4727.4,4727.3,1.2082]
[1755161305505,0.1056,4727.4,4727.3,0.001]
[1755161305937,1.3356,4727.4,4727.3,0.001]
[1755161306141,3.96657766,4727.4,4727.3,0.001]
[1755161306316,4.40747766,4727.4,4727.3,0.001]
[1755161307309,5.63747766,4727.4,4727.3,0.001]
[1755161307509,5.19657766,4727.4,4727.3,0.001]
[1755161308143,9.01747766,4727.4,4727.3,0.001]
[1755161308719,10.24747766,4727.4,4727.3,0.001]
[1755161310123,11.47747766,4727.4,4727.3,0.001]
[1755161310342,11.47747766,4727.4,4727.3,0.0018]
[1755161310343,11.47667766,4727.4,4727.3,0.0018]
[1755161311423,12.70667766,4727.4,4727.3,0.0018]
[1755161312138,13.14757766,4727.4,4727.3,0.0018]
[1755161312440,14.27687766,4727.4,4727.3,0.0018]
[1755161312820,15.50687766,4727.4,4727.3,0.0018]
[1755161314137,2.11555141,4726.9,4726.8,0.001]
[1755161314313,3.36136274,4726.9,4726.8,0.001]
[1755161315117,3.46696274,4726.9,4726.8,0.001]
[1755161315817,4.25606274,4726.9,4726.8,0.001]
[1755161316437,4.69696274,4726.9,4726.8,0.001]
[1755161317226,5.92696274,4726.9,4726.8,0.001]
[1755161317741,5.48606274,4726.9,4726.8,0.001]
[1755161318524,6.71606274,4726.9,4726.8,0.001]
[1755161319871,10.97506274,4726.9,4726.8,0.001]
[1755161320176,12.20506274,4726.9,4726.8,0.001]
[1755161320463,11.76416274,4726.9,4726.8,0.001]
[1755161321423,12.99416274,4726.9,4726.8,0.001]
[1755161322833,14.66506274,4726.9,4726.8,0.001]
[1755161323442,15.79436274,4726.9,4726.8,0.001]
[1755161324436,17.02436274,4726.9,4726.8,0.001]
[1755161325695,15.89506274,4726.9,4726.8,0.001]
[1755161325851,17.12506274,4726.9,4726.8,0.001]
[1755161327378,17.91416274,4726.9,4726.8,0.001]
[1755161328551,19.58506274,4726.9,4726.8,0.001]
[1755161328891,19.58506274,4726.9,4725.9,0.07086577]
[1755161328892,3.8171,4726.8,4725.9,0.07086577]
[1755161329057,2.22151276,4726.1,4725.9,0.07086577]
[1755161329497,0.1056,4726.1,4725.9,0.07086577]
[1755161329854,1.3356,4726.1,4725.9,0.07086577]
[1755161330679,1.3356,4726.1,4725.9,1.27806577]
[1755161330873,1.3356,4726.1,4726.0,1.2072]
[1755161331263,2.5656,4726.1,4726.0,1.2072]
[1755161331787,2.5656,4726.1,4725.9,0.07086577]
[1755161332002,4.68154984,4726.1,4725.9,0.07086577]
[1755161332485,3.08125,4726.1,4725.9,0.07086577]
[1755161332656,3.7956,4726.1,4725.9,0.07086577]
[1755161333155,6.36755429,4726.0,4725.9,0.07086577]
[1755161333954,7.59755429,4726.0,4725.9,0.07086577]
[1755161334786,7.16305429,4726.0,4725.9,0.07086577]
[1755161335567,8.39305429,4726.0,4725.9,0.07086577]
[1755161335775,9.71361562,4726.0,4725.9,0.07086577]
[1755161335976,7.59766133,4726.0,4725.9,0.07086577]
[1755161336288,9.71361562,4726.0,4725.9,0.07086577]
[1755161336586,6.2771,4726.0,4725.9,0.07086577]
[1755161336765,6.3827,4726.0,4725.9,1.17836577]
[1755161336968,7.6127,4726.0,4725.9,1.57916577]
[1755161338273,8.8427,4726.0,4725.9,1.57916577]
[1755161339584,10.0727,4726.0,4725.9,1.57916577]
[1755161340399,10.0727,4726.0,4725.9,1.73798235]
[1755161340582,6.2556,4726.0,4725.9,1.73798235]
[1755161341090,7.4856,4726.0,4725.9,4.73798235]
[1755161341494,7.4856,4726.0,4725.9,1.73798235]
[1755161342378,8.7156,4726.0,4725.9,1.73798235]
[1755161342579,8.61,4726.0,4725.9,3.85398141]
[1755161342793,8.61,4726.0,4725.9,1.17916577]
[1755161343377,8.61,4726.0,4725.9,0.07166577]
[1755161343768,9.9456,4726.0,4725.9,0.07166577]
[1755161344881,10.3801,4726.0,4725.9,0.07166577]
[1755161345280,11.6101,4726.0,4725.9,0.07166577]
[1755161346703,12.8401,4726.0,4725.9,0.07166577]
[1755161348102,14.0701,4726.0,4725.9,0.07166577]
[1755161349694,15.3001,4726.0,4725.9,0.07166577]
[1755161351001,16.5301,4726.0,4725.9,0.07166577]
[1755161352110,17.7212,4726.0,4725.9,0.07166577]
[1755161352402,18.9512,4726.0,4725.9,0.07166577]
[1755161353186,17.7601,4726.0,4725.9,0.07166577]
[1755161353383,17.3256,4726.0,4725.9,0.07166577]
[1755161353796,18.5556,4726.0,4725.9,0.07166577]
[1755161354381,18.9901,4726.0,4725.9,0.07166577]
[1755161355210,20.2201,4726.0,4725.9,0.07166577]
[1755161355382,24.0372,4726.0,4725.9,0.07166577]
[1755161355703,23.6027,4726.0,4725.9,0.07166577]
[1755161356490,23.6027,4726.0,4725.9,1.17916577]
[1755161356805,24.8327,4726.0,4725.9,1.57996577]
[1755161357389,24.8327,4726.0,4725.9,1.17916577]
[1755161357713,24.8327,4726.0,4725.9,0.07166577]